[Event "71st MNE-ch 2019"]
[Site "Podgorica"]
[Date "2019.05.25"]
[Round "8.7"]
[White "Popadic, Dragan"]
[Black "Vujacic, Igor"]
[Result "1/2-1/2"]
[ECO "B23"]
[WhiteElo "2198"]
[BlackElo "2205"]
[Annotator "NA RC"]
[PlyCount "167"]
[EventDate "2019.05.18"]
[EventType "swiss"]
[EventCountry "MNE"]
[SourceTitle "playchess.com"]
[Source "ChessBase"]
[SourceQuality "1"]
[TimeControl "40/5400+30:1800+30"]

1. e4 {[%emt 0:00:00]} c5 {[%emt 0:14:09]} 2. Nc3 {[%emt 0:00:00]} Nc6 {[%emt 0:00:26]} 3. f4 {[%emt 0:00:00]} g6 {[%emt 0:00:23]} 4. Nf3 {[%emt 0:00:04]} Bg7 {[%emt 0:00:15]} 5. Bc4 {[%emt 0:00:21]} d6 {[%emt 0:00:55]} 6. d3 {[%emt 0:00:42]} e6 {[%emt 0:00:31]} 7. O-O {[%emt 0:00:23]} Nge7 {[%emt 0:00:10]} 8. Qe1 {[%emt 0:00:40]} O-O {[%emt 0:00:42]} 9. f5 {[%emt 0:00:44]} d5 {[%emt 0:00:10]} 10. Bb3 {[%emt 0:00:15]} dxe4 {[%emt 0:01:09]} 11. dxe4 {[%emt 0:05:33] B23: Closed Sicilian: Lines without g3} (11. f6 exf3 12. fxg7 Qd4+ 13. Rf2 Qxg7 14. Rxf3 Nd4 15. Rf2 b6 16. Bf4 f6 17. Bd6 Re8 18. Ba4 Rd8 {1-0 (49) Simonian,H (2468)-Nakamura,H (2774) ICC INT 2011}) 11... exf5 {[%emt 0:01:26]} 12. Qh4 {[%emt 0:01:38]} fxe4 {[%emt 0:00:36]} 13. Ng5 {[%emt 0:02:00]} h6 {[%emt 0:00:45]} 14. Bxf7+ {[%emt 0:01:19]} Rxf7 {[%emt 0:01:34]} 15. Nxf7 {[%emt 0:03:33]} Qd4+ {[%emt 0:00:40]} 16. Kh1 {[%emt 0:03:34]} Nf5 {[%emt 0:00:25]} 17. Nxh6+ {[%emt 0:12:46]} Bxh6 {[%emt 0:00:47]} 18. Rxf5 {[%emt 0:01:36]} Bxf5 {[%emt 0:00:13]} 19. Bxh6 $146 {[%emt 0:00:54]} ({Predecessor:} 19. Qxh6) 19... e3 {[%emt 0:00:09]} 20. Qg3 {[%emt 0:06:23]} Re8 {[%emt 0:17:25]} 21. Re1 {[%emt 0:06:32]} e2 {[%emt 0:18:29]} 22. Rxe2 {[%emt 0:06:29]} Rxe2 {[%emt 0:00:27]} 23. Nxe2 {[%emt 0:00:06]} Qxb2 {[%emt 0:02:42]} 24. h3 {[%emt 0:07:16]} Qxa2 {[%emt 0:14:09]} 25. Qd6 {[%emt 0:04:33]} Kh7 {[%emt 0:01:45]} 26. Bf8 {[%emt 0:12:28]} Qa1+ {[%emt 0:06:26]} 27. Ng1 {[%emt 0:00:30]} Qe5 {[%emt 0:00:28]} 28. Qd2 {[%emt 0:01:26]} Kg8 {[%emt 0:00:46]} 29. Bd6 {[%emt 0:01:47]} Qd4 {[%emt 0:01:06]} 30. Nf3 {[%emt 0:01:20]} Qxd2 {[%emt 0:00:15]} 31. Nxd2 {[%emt 0:00:01]} Bxc2 {[%emt 0:06:19]} 32. Bxc5 {[%emt 0:01:16]} b5 {[%emt 0:00:12]} 33. Kg1 {[%emt 0:00:46]} a5 {[%emt 0:02:29]} 34. Kf2 {[%emt 0:00:17]} a4 {[%emt 0:00:47]} 35. Ke3 {[%emt 0:00:58]} b4 {[%emt 0:01:46]} 36. Nc4 {[%emt 0:01:04]} a3 {[%emt 0:02:53]} 37. Nxa3 {[%emt 0:00:26]} bxa3 {[%emt 0:00:07]} 38. Bxa3 {[%emt 0:00:05]} Kg7 {[%emt 0:01:24]} 39. Bb2+ {[%emt 0:00:32]} Kh6 {[%emt 0:00:17]} 40. Kf4 {[%emt 0:00:00]} Nb4 {[%emt 0:00:00]} 41. Ba1 Nd5+ {[%emt 0:02:08]} 42. Kf3 {[%emt 0:02:29]} Kg5 {[%emt 0:01:45]} 43. Bb2 {[%emt 0:01:09]} Bd1+ {[%emt 0:00:22]} 44. Ke4 {[%emt 0:01:48]} Nf6+ {[%emt 0:00:31]} 45. Ke3 {[%emt 0:00:36]} Nd5+ {[%emt 0:02:38]} 46. Ke4 {[%emt 0:00:52]} Bb3 {[%emt 0:00:19]} 47. Bd4 {[%emt 0:02:00]} Ne7 {[%emt 0:00:54]} 48. Be3+ {[%emt 0:01:26]} Kf6 {[%emt 0:01:14]} 49. Kf3 {[%emt 0:01:09]} Bd5+ {[%emt 0:00:34]} 50. Kf2 {[%emt 0:00:16]} Nf5 {[%emt 0:02:38]} 51. Bb6 {[%emt 0:01:21]} Ke5 {[%emt 0:01:24]} 52. Bd8 {[%emt 0:00:35]} Nd6 {[%emt 0:02:32]} 53. Bc7 {[%emt 0:00:59]} Ke6 {[%emt 0:00:09]} 54. Bd8 {[%emt 0:01:00]} Ne4+ {[%emt 0:00:11]} 55. Ke3 {[%emt 0:01:06]} Kf5 {[%emt 0:00:56]} 56. Bc7 {[%emt 0:02:07]} Ng5 {[%emt 0:01:16]} 57. g4+ {[%emt 0:03:03]} Ke6 {[%emt 0:00:35]} 58. h4 {[%emt 0:00:23]} Kd7 {[%emt 0:05:52]} 59. Be5 {[%emt 0:03:42]} Ne6 {[%emt 0:00:58]} 60. Bf6 {[%emt 0:02:25]} Ke8 {[%emt 0:01:12]} 61. Bb2 {[%emt 0:01:00]} Kf7 {[%emt 0:00:24]} 62. Be5 {[%emt 0:00:36]} Bc6 {[%emt 0:00:28]} 63. Bb2 {[%emt 0:00:41]} Ba4 {[%emt 0:00:37]} 64. Kf3 {[%emt 0:00:31]} Bd1+ {[%emt 0:00:42]} 65. Kg3 {[%emt 0:00:08]} Ke7 {[%emt 0:00:49]} 66. Be5 {[%emt 0:00:51]} Be2 {[%emt 0:00:21]} 67. Ba1 {[%emt 0:00:29]} Kd6 {[%emt 0:00:09]} 68. Bf6 {[%emt 0:01:51]} Bd1 {[%emt 0:00:20]} 69. Ba1 $17 {[%emt 0:00:17]} Kd5 {[%emt 0:00:08]} 70. Bf6 {[%emt 0:00:51]} Be2 {[%emt 0:01:31]} 71. Ba1 Ke4 {[%emt 0:07:28]} 72. Bf6 {[%emt 0:02:15]} Bd3 {[%emt 0:02:04]} 73. Be7 {[%emt 0:02:11]} Bc2 {[%emt 0:00:59]} 74. Bf6 {[%emt 0:00:56]} Bb1 {[%emt 0:00:39]} 75. Be7 {[%emt 0:00:42]} Bd3 {[%emt 0:00:05]} 76. Bf6 {[%emt 0:02:33]} Nf4 {[%emt 0:01:12]} 77. h5 {[%emt 0:03:39]} gxh5 {[%emt 0:02:47]} 78. Kh4 {[%emt 0:00:13]} Be2 {[%emt 0:03:25]} 79. gxh5 {[%emt 0:00:26]} Kf5 {[%emt 0:00:48]} 80. Bd8 {[%emt 0:01:33]} Nxh5 {[%emt 0:00:16]} 81. Bc7 {[%emt 0:00:21]} Bg4 {[%emt 0:00:12]} 82. Bb8 {[%emt 0:00:23]} Nf6 {[%emt 0:00:34]} 83. Kg3 {[%emt 0:00:14]} Ne4+ {[%emt 0:00:17]} 84. Kg2 {[%emt 0:00:23]} 1/2-1/2

[Event "71st MNE-ch 2019"]
[Site "Podgorica"]
[Date "2019.05.25"]
[Round "8.9"]
[White "Musovic, Armin"]
[Black "Abramovic, Dragoljub"]
[Result "1-0"]
[ECO "B10"]
[WhiteElo "2297"]
[BlackElo "2063"]
[Annotator "NA"]
[PlyCount "77"]
[EventDate "2019.05.18"]
[EventType "swiss"]
[EventCountry "MNE"]
[SourceTitle "playchess.com"]
[Source "ChessBase"]
[SourceQuality "1"]
[TimeControl "40/5400+30:1800+30"]

1. e4 {[%emt 0:00:00]} c6 {[%emt 0:04:19]} 2. Nc3 {[%emt 0:00:19]} d5 {[%emt 0:00:20]} 3. Nf3 {[%emt 0:00:05]} dxe4 {[%emt 0:02:12]} 4. Nxe4 {[%emt 0:00:20]} Bg4 {[%emt 0:00:58]} 5. h3 {[%emt 0:02:35]} Bxf3 {[%emt 0:01:03]} 6. Qxf3 {[%emt 0:00:04]} e6 {[%emt 0:00:13]} 7. Bc4 {[%emt 0:03:06]} Nf6 {[%emt 0:00:42]} 8. O-O {[%emt 0:02:42]} Nbd7 {[%emt 0:01:17]} 9. d4 {[%emt 0:00:39]} Nb6 {[%emt 0:00:54]} 10. Nxf6+ {[%emt 0:07:09]} Qxf6 {[%emt 0:04:30]} 11. Qxf6 {[%emt 0:00:15]} gxf6 {[%emt 0:00:02]} 12. Be2 {[%emt 0:00:37]} Rd8 {[%emt 0:00:40]} 13. Rd1 {[%emt 0:00:29]} e5 {[%emt 0:03:05]} 14. dxe5 {[%emt 0:02:31]} Rxd1+ {[%emt 0:00:18]} 15. Bxd1 {[%emt 0:00:03]} fxe5 {[%emt 0:00:06]} 16. Be3 {[%emt 0:00:40]} Nc4 {[%emt 0:06:21]} 17. Bxa7 {[%emt 0:00:13]} Nxb2 {[%emt 0:00:01]} 18. Bf3 {[%emt 0:01:54]} Ba3 {[%emt 0:02:08]} 19. Re1 {[%emt 0:00:10]} Bd6 {[%emt 0:01:42]} 20. Rb1 {[%emt 0:02:05]} Ba3 {[%emt 0:00:15]} 21. Be3 {[%emt 0:00:46]} c5 {[%emt 0:10:53]} 22. Bc1 {[%emt 0:01:19]} Nc4 {[%emt 0:00:08]} 23. Bh6 {[%emt 0:01:00]} Ke7 {[%emt 0:07:12]} 24. Rxb7+ {[%emt 0:00:50]} Ke6 {[%emt 0:00:58]} 25. Ra7 {[%emt 0:02:11]} Bb2 {[%emt 0:02:26]} 26. Ra6+ {[%emt 0:02:11]} Nd6 {[%emt 0:00:24]} 27. c4 {[%emt 0:00:19]} Rd8 {[%emt 0:06:37]} 28. Bd5+ {[%emt 0:02:41]} Kf6 {[%emt 0:02:44]} 29. a4 {[%emt 0:05:06]} Bc3 {[%emt 0:00:40]} 30. a5 {[%emt 0:00:16]} e4 {[%emt 0:02:29]} 31. Bxe4 {[%emt 0:04:52]} Ke7 {[%emt 0:02:42]} 32. Ra7+ {[%emt 0:01:36]} Kf6 {[%emt 0:03:06]} 33. Bd5 {[%emt 0:00:34]} Be5 {[%emt 0:00:30]} 34. g3 {[%emt 0:00:40]} Rb8 {[%emt 0:00:44]} 35. Be3 {[%emt 0:03:18]} Rb1+ {[%emt 0:00:43]} 36. Kg2 {[%emt 0:00:06]} Bd4 {[%emt 0:00:08]} 37. Rd7 {[%emt 0:00:46]} Bxe3 {[%emt 0:00:29]} 38. Rxd6+ {[%emt 0:00:07]} Ke7 {[%emt 0:00:48]} 39. Rb6 {[%emt 0:00:08]} 1-0

[Event "71st MNE-ch 2019"]
[Site "Podgorica"]
[Date "2019.05.25"]
[Round "8.10"]
[White "Sukovic, Andrej"]
[Black "Vujovic, Savo"]
[Result "1/2-1/2"]
[ECO "A02"]
[WhiteElo "2221"]
[BlackElo "1940"]
[Annotator "NA"]
[PlyCount "36"]
[EventDate "2019.05.18"]
[EventType "swiss"]
[EventCountry "MNE"]
[SourceTitle "playchess.com"]
[Source "ChessBase"]
[SourceQuality "1"]
[TimeControl "40/5400+30:1800+30"]

1. f4 {[%emt 0:01:58]} Nf6 {[%emt 0:01:29]} 2. b3 {[%emt 0:00:08]} g6 {[%emt 0:01:13]} 3. Bb2 {[%emt 0:00:07]} Bg7 {[%emt 0:00:05]} 4. e3 {[%emt 0:02:01]} O-O {[%emt 0:04:06]} 5. Nf3 {[%emt 0:00:09]} c5 {[%emt 0:06:43]} 6. Be2 {[%emt 0:00:36]} Nc6 {[%emt 0:00:44]} 7. O-O {[%emt 0:00:11]} d5 {[%emt 0:00:48]} 8. h3 {[%emt 0:03:09]} d4 {[%emt 0:09:11]} 9. Na3 {[%emt 0:03:33]} Nd5 {[%emt 0:03:08]} 10. Qc1 {[%emt 0:06:28]} dxe3 {[%emt 0:03:44]} 11. Bxg7 {[%emt 0:00:20]} Nxf4 {[%emt 0:02:34]} 12. Bc4 {[%emt 0:15:43]} Kxg7 {[%emt 0:04:59]} 13. Qb2+ {[%emt 0:00:47]} f6 {[%emt 0:05:37]} 14. dxe3 {[%emt 0:00:31]} Nh5 {[%emt 0:08:25]} 15. Nb5 Bf5 {[%emt 0:14:49]} 16. e4 {[%emt 0:08:44]} a6 {[%emt 0:04:53]} 17. Rad1 {[%emt 0:09:32]} Qb8 {[%emt 0:00:31]} 18. Nc3 {[%emt 0:05:08]} Bxh3 {[%emt 0:03:22]} 1/2-1/2

[Event "71st MNE-ch 2019"]
[Site "Podgorica"]
[Date "2019.05.25"]
[Round "8.11"]
[White "Pobor, Milo"]
[Black "Karisik, Nenad"]
[Result "1-0"]
[ECO "B53"]
[WhiteElo "1960"]
[BlackElo "2128"]
[Annotator "NA"]
[PlyCount "71"]
[EventDate "2019.05.18"]
[EventType "swiss"]
[EventCountry "MNE"]
[SourceTitle "playchess.com"]
[Source "ChessBase"]
[SourceQuality "1"]
[TimeControl "40/5400+30:1800+30"]

1. e4 {[%emt 0:00:00]} c5 {[%emt 0:00:09]} 2. Nf3 {[%emt 0:00:00]} d6 {[%emt 0:00:13]} 3. d4 {[%emt 0:00:00]} cxd4 {[%emt 0:00:06]} 4. Qxd4 {[%emt 0:00:01]} Nc6 {[%emt 0:00:15]} 5. Bb5 {[%emt 0:00:06]} Bd7 {[%emt 0:00:10]} 6. Bxc6 {[%emt 0:00:03]} Bxc6 {[%emt 0:00:06]} 7. Nc3 {[%emt 0:00:04]} Nf6 {[%emt 0:00:08]} 8. Bg5 {[%emt 0:00:06]} e6 {[%emt 0:00:19]} 9. O-O-O {[%emt 0:01:03]} Be7 {[%emt 0:00:38]} 10. Rhe1 {[%emt 0:00:06]} Qa5 {[%emt 0:02:11]} 11. Kb1 {[%emt 0:04:30]} h6 {[%emt 0:01:44]} 12. Bh4 {[%emt 0:03:06]} e5 {[%emt 0:00:54]} 13. Qd3 {[%emt 0:06:55]} g5 {[%emt 0:01:01]} 14. Bg3 {[%emt 0:00:44]} Rc8 {[%emt 0:02:42]} 15. Nd2 {[%emt 0:03:52]} b5 {[%emt 0:01:19]} 16. h4 {[%emt 0:22:09]} b4 {[%emt 0:04:50]} 17. Nb3 {[%emt 0:02:44]} Qb6 {[%emt 0:09:54]} 18. hxg5 {[%emt 0:08:04]} hxg5 {[%emt 0:07:32]} 19. Nd5 {[%emt 0:01:02]} Nxd5 {[%emt 0:01:39]} 20. exd5 {[%emt 0:00:03]} Bd7 {[%emt 0:01:10]} 21. Qe2 {[%emt 0:04:49]} Kf8 {[%emt 0:01:36]} 22. f4 {[%emt 0:11:09]} gxf4 {[%emt 0:00:52]} 23. Bxf4 {[%emt 0:01:47]} Bb5 {[%emt 0:03:26]} 24. Qg4 {[%emt 0:03:29]} Rc4 {[%emt 0:06:39]} 25. Rh1 {[%emt 0:00:10]} Rxh1 {[%emt 0:00:28]} 26. Rxh1 {[%emt 0:00:01]} Bf6 {[%emt 0:01:25]} 27. Bh6+ {[%emt 0:00:15]} Ke7 {[%emt 0:00:25]} 28. Qg3 {[%emt 0:07:19]} Qd8 {[%emt 0:12:23]} 29. Nd2 {[%emt 0:06:44]} Rd4 {[%emt 0:01:39]} 30. Be3 {[%emt 0:00:08]} Rxd5 {[%emt 0:01:04]} 31. Ne4 {[%emt 0:00:13]} Kd7 {[%emt 0:00:50]} 32. Qf3 {[%emt 0:00:38]} Be7 {[%emt 0:00:31]} 33. Nf6+ {[%emt 0:00:43]} Bxf6 {[%emt 0:00:30]} 34. Qxd5 {[%emt 0:00:05]} Bc6 {[%emt 0:01:27]} 35. Qxf7+ {[%emt 0:00:30]} Qe7 {[%emt 0:00:11]} 36. Qg6 {[%emt 0:00:23]} 1-0

[Event "71st MNE-ch 2019"]
[Site "Podgorica"]
[Date "2019.05.25"]
[Round "8.12"]
[White "Bacic, Kristina"]
[Black "Koljevic, Nikolina"]
[Result "1/2-1/2"]
[ECO "A45"]
[WhiteElo "1819"]
[BlackElo "1964"]
[Annotator "NA"]
[PlyCount "54"]
[EventDate "2019.05.18"]
[EventType "swiss"]
[EventCountry "MNE"]
[SourceTitle "playchess.com"]
[Source "ChessBase"]
[SourceQuality "1"]
[TimeControl "40/5400+30:1800+30"]

1. d4 {[%emt 0:05:10]} Nf6 {[%emt 0:00:00]} 2. e3 {[%emt 0:01:27]} e6 {[%emt 0:00:19]} 3. f4 {[%emt 0:00:21]} c5 {[%emt 0:01:29]} 4. Nf3 {[%emt 0:00:39]} b6 {[%emt 0:02:53]} 5. c3 {[%emt 0:02:10]} Bb7 {[%emt 0:01:17]} 6. Nbd2 {[%emt 0:03:49]} Be7 {[%emt 0:01:39]} 7. Bd3 {[%emt 0:04:30]} O-O {[%emt 0:03:30]} 8. O-O {[%emt 0:00:52]} d5 {[%emt 0:03:15]} 9. Ne5 {[%emt 0:03:41]} Ne4 {[%emt 0:03:14]} 10. Qf3 {[%emt 0:10:52]} f6 {[%emt 0:06:26]} 11. Ng4 {[%emt 0:02:57]} f5 {[%emt 0:02:55]} 12. Ne5 {[%emt 0:00:55]} Nd7 {[%emt 0:03:10]} 13. g4 {[%emt 0:10:20]} Ndf6 {[%emt 0:05:23]} 14. g5 {[%emt 0:01:29]} Nxd2 {[%emt 0:00:05]} 15. Bxd2 {[%emt 0:00:49]} Ne4 {[%emt 0:00:03]} 16. Be1 {[%emt 0:03:28]} Bd6 {[%emt 0:01:39]} 17. Bxe4 {[%emt 0:10:08]} dxe4 {[%emt 0:00:52]} 18. Qh5 {[%emt 0:01:01]} Bxe5 {[%emt 0:01:52]} 19. fxe5 {[%emt 0:00:53]} Qe8 {[%emt 0:03:21]} 20. Qxe8 {[%emt 0:03:57]} Raxe8 {[%emt 0:00:20]} 21. Rf4 {[%emt 0:02:29]} Rc8 {[%emt 0:06:06]} 22. Kf2 {[%emt 0:02:08]} Rfd8 {[%emt 0:02:44]} 23. Bd2 {[%emt 0:02:55]} Bc6 {[%emt 0:00:43]} 24. Rg1 {[%emt 0:03:12]} Be8 {[%emt 0:00:19]} 25. Rh4 {[%emt 0:04:38]} b5 {[%emt 0:03:34]} 26. a3 {[%emt 0:01:30]} a5 {[%emt 0:13:19]} 27. Ra1 {[%emt 0:00:20]} a4 {[%emt 0:04:55]} 1/2-1/2

[Event "71st MNE-ch 2019"]
[Site "Podgorica"]
[Date "2019.05.25"]
[Round "8.14"]
[White "Djurovic, Peko"]
[Black "Popovic, Mateja"]
[Result "1-0"]
[ECO "C62"]
[WhiteElo "1898"]
[BlackElo "1436"]
[Annotator "NA"]
[PlyCount "37"]
[EventDate "2019.05.18"]
[EventType "swiss"]
[EventCountry "MNE"]
[SourceTitle "playchess.com"]
[Source "ChessBase"]
[SourceQuality "1"]
[TimeControl "40/5400+30:1800+30"]

1. e4 {[%emt 0:00:00]} e5 {[%emt 0:00:00]} 2. Nf3 {[%emt 0:00:00]} Nc6 {[%emt 0:00:00]} 3. Bb5 {[%emt 0:00:00]} d6 {[%emt 0:00:15]} 4. d4 {[%emt 0:00:00]} exd4 {[%emt 0:00:11]} 5. Nxd4 {[%emt 0:00:02]} Bd7 {[%emt 0:00:05]} 6. Nc3 {[%emt 0:00:21]} Nf6 {[%emt 0:00:23]} 7. O-O {[%emt 0:00:10]} g6 {[%emt 0:00:10]} 8. Bg5 {[%emt 0:00:33]} Be7 {[%emt 0:00:59]} 9. Nd5 {[%emt 0:01:10]} O-O {[%emt 0:16:27]} 10. Nxe7+ {[%emt 0:00:19]} Qxe7 {[%emt 0:00:09]} 11. Bxc6 {[%emt 0:00:07]} bxc6 {[%emt 0:00:48]} 12. Qf3 {[%emt 0:00:45]} Kg7 {[%emt 0:01:46]} 13. Qf4 {[%emt 0:03:57]} Rfe8 {[%emt 0:01:18]} 14. Rae1 {[%emt 0:00:47]} c5 {[%emt 0:02:44]} 15. Ne2 {[%emt 0:01:26]} Qe5 {[%emt 0:14:36]} 16. Qh4 {[%emt 0:01:54]} Nxe4 {[%emt 0:05:03]} 17. Bh6+ {[%emt 0:02:58]} Kg8 {[%emt 0:01:54]} 18. Ng3 {[%emt 0:01:36]} Qf6 {[%emt 0:00:09]} 19. Rxe4 {[%emt 0:00:12]} 1-0

[Event "71st MNE-ch 2019"]
[Site "Podgorica"]
[Date "2019.05.25"]
[Round "8.15"]
[White "Petrovic, Slavko"]
[Black "Stankovic, Zarko"]
[Result "0-1"]
[ECO "B44"]
[WhiteElo "1945"]
[BlackElo "2218"]
[Annotator "NA"]
[PlyCount "114"]
[EventDate "2019.05.18"]
[EventType "swiss"]
[EventCountry "MNE"]
[SourceTitle "playchess.com"]
[Source "ChessBase"]
[SourceQuality "1"]
[TimeControl "40/5400+30:1800+30"]

1. e4 {[%emt 0:00:00]} c5 {[%emt 0:00:00]} 2. Ne2 {[%emt 0:00:19]} e6 {[%emt 0:00:46]} 3. d4 {[%emt 0:00:28]} cxd4 {[%emt 0:00:02]} 4. Nxd4 {[%emt 0:00:19]} Nc6 {[%emt 0:01:08]} 5. Nb5 {[%emt 0:00:44]} d6 {[%emt 0:00:12]} 6. Bf4 {[%emt 0:01:02]} e5 {[%emt 0:00:26]} 7. Be3 {[%emt 0:00:38]} Nf6 {[%emt 0:00:13]} 8. Bd3 {[%emt 0:03:15] B44: Sicilian: Taimanov: 5 Nb5} (8. Bg5 Be6 9. c4 Be7 10. N1c3 O-O 11. Be2 a6 12. Na3 Nxe4 13. Bxe7 Nxc3 14. Bxd8 Nxd1 15. Bc7 Nxb2 16. Bxd6 Rfd8 {0-1 (27) Leko,P (2730)-Grischuk,A (2783) Beijing 2013}) 8... a6 {[%emt 0:01:25]} 9. N5a3 {[%emt 0:07:24]} d5 {[%emt 0:02:11]} 10. exd5 {[%emt 0:05:34]} Qxd5 $146 {[%emt 0:01:53]} ({Predecessor:} 10... Nxd5 11. Be4 Nxe3 12. Bxc6+ bxc6 13. Qxd8+ Kxd8 14. fxe3 Bf5 15. Nc4 f6 {0-1 (52) Leinemann,V (1425)-Horstmann,A (1751) Braunfels 2015}) 11. O-O {[%emt 0:00:45]} Bg4 {[%emt 0:03:48]} 12. f3 {[%emt 0:03:52]} Bc5 {[%emt 0:00:47]} 13. Qe1 {[%emt 0:01:22]} Bxe3+ {[%emt 0:02:14]} 14. Qxe3 {[%emt 0:00:11]} Be6 {[%emt 0:01:21]} 15. Nc4 {[%emt 0:12:35]} Nd7 {[%emt 0:01:49]} 16. Nc3 {[%emt 0:07:50]} Qc5 {[%emt 0:01:50]} 17. Rfe1 {[%emt 0:05:00]} O-O-O {[%emt 0:07:51]} 18. Ne4 {[%emt 0:12:44]} Qe7 {[%emt 0:04:10]} 19. Nb6+ {[%emt 0:09:07]} Nxb6 {[%emt 0:08:28]} 20. Qxb6 {[%emt 0:01:24]} Qc7 {[%emt 0:00:27]} 21. Qxc7+ {[%emt 0:06:26]} Kxc7 {[%emt 0:00:01]} 22. Kf2 {[%emt 0:00:20]} h6 {[%emt 0:00:55]} 23. Nc5 {[%emt 0:00:52]} Bc8 {[%emt 0:01:27]} 24. Be4 {[%emt 0:07:09]} Rd2+ {[%emt 0:06:24]} 25. Re2 {[%emt 0:03:25]} Rhd8 {[%emt 0:00:51]} 26. Rae1 {[%emt 0:02:37]} Rxe2+ {[%emt 0:04:19]} 27. Rxe2 {[%emt 0:00:28]} Rd1 {[%emt 0:02:50]} 28. c3 {[%emt 0:01:30]} f6 {[%emt 0:00:30]} 29. Bc2 {[%emt 0:02:18]} Rh1 {[%emt 0:02:24]} 30. Kg3 {[%emt 0:00:08]} b6 {[%emt 0:00:16]} 31. Nb3 {[%emt 0:00:19]} Be6 {[%emt 0:00:35]} 32. Rd2 {[%emt 0:00:14]} a5 {[%emt 0:01:08]} 33. Rd1 {[%emt 0:00:50]} Rxd1 {[%emt 0:01:01]} 34. Bxd1 {[%emt 0:00:04]} Kd6 {[%emt 0:00:40]} 35. Bc2 {[%emt 0:00:52]} f5 {[%emt 0:00:33]} 36. Kf2 {[%emt 0:00:16]} g5 {[%emt 0:02:11]} 37. g3 {[%emt 0:00:13]} f4 {[%emt 0:02:36]} 38. Nc1 {[%emt 0:00:35]} Bc4 {[%emt 0:00:32]} 39. a3 {[%emt 0:01:25]} Ne7 {[%emt 0:02:47]} 40. Be4 {[%emt 0:01:33]} a4 {[%emt 0:00:00]} 41. Bc2 {[%emt 0:03:40]} b5 {[%emt 0:02:53]} 42. Be4 {[%emt 0:01:43]} Ng8 {[%emt 0:06:17]} 43. g4 {[%emt 0:02:42]} Nf6 {[%emt 0:00:15]} 44. Bb7 {[%emt 0:08:22]} h5 {[%emt 0:05:02]} 45. h3 {[%emt 0:02:29]} h4 {[%emt 0:00:47]} 46. Kg2 {[%emt 0:02:57]} Nd7 {[%emt 0:10:53]} 47. Be4 {[%emt 0:00:53]} Nc5 {[%emt 0:00:40]} 48. Bc2 {[%emt 0:00:31]} Kd5 {[%emt 0:02:33]} 49. Kf2 {[%emt 0:04:05]} e4 {[%emt 0:02:03]} 50. fxe4+ {[%emt 0:02:28]} Nxe4+ {[%emt 0:00:08]} 51. Kg2 {[%emt 0:04:02]} Nc5 {[%emt 0:02:01]} 52. Kf2 {[%emt 0:00:59]} Bb3 {[%emt 0:05:24]} 53. Bd3 $2 {[%emt 0:01:55]} (53. Bh7 Bc4 54. Bg8+ Ke5 55. Bh7) 53... Bc4 {[%emt 0:02:04]} 54. Bc2 $1 {[%emt 0:00:08]} Ke5 $19 {[%emt 0:00:44]} 55. Ke1 {[%emt 0:03:26]} f3 {[%emt 0:00:31]} 56. Kf2 {[%emt 0:00:28]} Kf4 {[%emt 0:00:03]} 57. Bf5 {[%emt 0:00:12]} Ne4+ {[%emt 0:00:48]} 0-1

[Event "71st MNE-ch 2019"]
[Site "Podgorica"]
[Date "2019.05.25"]
[Round "8.16"]
[White "Sabotic, Denis"]
[Black "Ljeskovic, Luka"]
[Result "1-0"]
[ECO "B18"]
[WhiteElo "1682"]
[BlackElo "1710"]
[Annotator "NA"]
[PlyCount "85"]
[EventDate "2019.05.18"]
[EventType "swiss"]
[EventCountry "MNE"]
[SourceTitle "playchess.com"]
[Source "ChessBase"]
[SourceQuality "1"]
[TimeControl "40/5400+30:1800+30"]

1. e4 {[%emt 0:00:00]} c6 {[%emt 0:02:59]} 2. d4 {[%emt 0:00:13]} d5 {[%emt 0:00:07]} 3. Nd2 {[%emt 0:00:31]} dxe4 {[%emt 0:00:10]} 4. Nxe4 {[%emt 0:00:02]} Bf5 {[%emt 0:00:08]} 5. Ng3 {[%emt 0:00:14]} Bg6 {[%emt 0:00:05]} 6. h4 {[%emt 0:00:33]} h6 {[%emt 0:00:07]} 7. Bc4 {[%emt 0:00:59]} Nf6 {[%emt 0:01:39]} 8. Nf3 {[%emt 0:00:44]} Nbd7 {[%emt 0:00:07]} 9. Bd3 {[%emt 0:02:58]} Bxd3 {[%emt 0:00:08]} 10. Qxd3 {[%emt 0:00:06]} e6 {[%emt 0:00:07]} 11. Bf4 {[%emt 0:00:25]} Nd5 {[%emt 0:00:30]} 12. Bd2 {[%emt 0:01:20]} Qc7 {[%emt 0:01:46]} 13. a3 {[%emt 0:00:36]} Nf4 {[%emt 0:02:09]} 14. Bxf4 {[%emt 0:01:40]} Qxf4 {[%emt 0:00:09]} 15. O-O {[%emt 0:02:36]} Bd6 {[%emt 0:01:35]} 16. Rfe1 {[%emt 0:01:12]} O-O-O {[%emt 0:02:14]} 17. c4 {[%emt 0:04:03]} g5 {[%emt 0:00:48]} 18. h5 {[%emt 0:03:47]} g4 {[%emt 0:00:36]} 19. Re4 {[%emt 0:00:51]} Qf6 {[%emt 0:00:10]} 20. Rxg4 {[%emt 0:01:08]} Rdg8 {[%emt 0:00:23]} 21. Ne4 {[%emt 0:02:03]} Qe7 {[%emt 0:00:32]} 22. Nxd6+ {[%emt 0:01:06]} Qxd6 {[%emt 0:00:05]} 23. Rxg8+ {[%emt 0:01:37]} Rxg8 {[%emt 0:00:07]} 24. Qh7 {[%emt 0:02:16]} Qf8 {[%emt 0:00:09]} 25. Ne5 {[%emt 0:05:32]} Nxe5 {[%emt 0:00:16]} 26. dxe5 {[%emt 0:00:02]} Rg5 {[%emt 0:00:12]} 27. Qe4 {[%emt 0:03:18]} Rxh5 {[%emt 0:00:39]} 28. b4 {[%emt 0:00:40]} Qe7 {[%emt 0:05:16]} 29. g3 {[%emt 0:06:25]} Rg5 {[%emt 0:03:04]} 30. Kg2 {[%emt 0:01:14]} h5 {[%emt 0:00:17]} 31. Rh1 {[%emt 0:00:40]} Rg4 {[%emt 0:03:19]} 32. Qe3 {[%emt 0:07:28]} Rxc4 {[%emt 0:02:18]} 33. Rxh5 {[%emt 0:00:33]} b6 {[%emt 0:00:41]} 34. Qd3 {[%emt 0:00:56]} b5 {[%emt 0:00:27]} 35. Qe3 {[%emt 0:04:34]} c5 {[%emt 0:00:25]} 36. Rh8+ {[%emt 0:01:16]} Kc7 {[%emt 0:01:50]} 37. Qf3 {[%emt 0:04:59]} cxb4 {[%emt 0:01:58]} 38. axb4 {[%emt 0:01:08]} Rc6 {[%emt 0:01:42]} 39. Rc8+ {[%emt 0:01:32]} Kxc8 {[%emt 0:00:04]} 40. Qxc6+ {[%emt 0:00:00]} Kd8 {[%emt 0:00:00]} 41. Qa8+ {[%emt 0:00:52]} Kd7 {[%emt 0:00:07]} 42. Qxa7+ {[%emt 0:00:19]} Kd8 {[%emt 0:00:04]} 43. Qb8+ {[%emt 0:00:39]} 1-0